fUSD/lending_fUSD_20240518
["ID","MTS","AMOUNT","RATE_DAILY","PERIOD"]
[327358513,1716016240546,-314.051816,0.00040997,44]
[327358515,1716016240555,-314.051816,0.00040997,44]
[327358518,1716016240566,-314.051816,0.00040997,42]
[327358520,1716016240575,-314.051816,0.00040997,42]
[327358522,1716016240586,-314.051816,0.00040997,40]
[327358524,1716016240595,-314.051816,0.00040997,40]
[327358526,1716016240604,-194889.4192176,0.00040998,21]
[327358551,1716016240830,-292.82652537,0.00040998,21]
[327358553,1716016240841,-299.20206401,0.00040998,21]
[327358566,1716016240949,-493045.34618817,0.00040998,21]
[327358568,1716016240960,-3145.12011062,0.00040998,21]
[327358569,1716016240971,-288.12424113,0.00040998,21]
[327358572,1716016240990,-1307.98995818,0.00040998,21]
[327358574,1716016241001,-1421.105003,0.00040998,21]
[327358577,1716016241012,-512.307232,0.00040998,21]
[327358579,1716016241023,-450.89332225,0.00040998,21]
[327358581,1716016241034,-1000.51593,0.00040998,21]
[327358592,1716016241135,-25304.02803283,0.00040998,21]
[327358608,1716016241271,-1319.0,0.00040998,21]
[327358611,1716016241288,-843.4,0.00040998,21]
[327358613,1716016241300,-33514.86458254,0.00040998,21]
[327358627,1716016241425,-4672.97022714,0.00040998,21]
[327358793,1716016242988,-150.0,0.0001666,3]
[327358795,1716016242999,-305.9617255,0.00027911,2]
[327358797,1716016243008,-1088.21316841,0.000409,15]
[327358799,1716016243017,-17642.68159407,0.00040998,21]
[327358801,1716016243031,-13204.528,0.00040998,21]
[327358804,1716016243042,-1640.68312066,0.00040998,21]
[327358806,1716016243053,-7422.1201178,0.00040998,21]
[327358808,1716016243065,-274.733615,0.00040998,21]
[327358810,1716016243076,-359.54568102,0.00040998,21]
[327358830,1716016243250,-321795.11460515,0.00040998,21]
[327358832,1716016243260,-523.16611257,0.00040998,4]
[327358834,1716016243269,-2361.52496939,0.00040998,4]
[327358836,1716016243283,-491.13860627,0.00040998,30]
[327358838,1716016243292,-3027.17182449,0.00040998,2]
[327358840,1716016243302,-2185.42797665,0.00040998,4]
[327358842,1716016243312,-712.5895165,0.00040998,30]
[327358844,1716016243322,-783.68713518,0.00040998,4]
[327358846,1716016243332,-167121.11546806,0.00040998,30]
[327358848,1716016243341,-25889.35565322,0.00040999,6]
[327358850,1716016243352,-234.15716962,0.00040999,4]
[327358852,1716016243362,-161.96187779,0.00040999,4]
[327358854,1716016243372,-421.33736945,0.00040999,2]
[327358856,1716016243381,-566478.00373512,0.00040999,4]
[327358858,1716016243393,-579.71999999,0.00040999,4]
[327358861,1716016243404,-149735.10075497,0.00040999,4]
[327358863,1716016243413,-600.0,0.00040999,2]
[327358865,1716016243423,-392.38278061,0.00040999,4]
[327358867,1716016243432,-1107.32636568,0.00041,5]
[327358869,1716016243442,-238135.2003689,0.00041,30]
[327358871,1716016243454,-8460.15693833,0.00041,30]
[327358873,1716016243465,-1000.54565817,0.00041,30]
[327358875,1716016243476,-575.42,0.00041,30]
[327358956,1716016245983,-537.99567324,0.00017259,2]
[327358958,1716016245993,-318.213591,0.00040611,2]
[327358960,1716016246006,-1072.876409,0.00040611,2]
[327358962,1716016246015,-113091.09184732,0.00041,30]
[327358964,1716016246028,-13498.80000015,0.00041,30]
[327358966,1716016246039,-5997.1,0.00041,30]
[327358967,1716016246124,-1685.47391358,0.00017259,2]
[327358968,1716016246136,-5821.43108133,0.00017259,2]
[327358969,1716016246147,-796.67381843,0.00041,30]
[327358970,1716016246158,-792.73224283,0.00041,30]
[327359038,1716017432013,-486.27247899,0.00013864,2]
[327359040,1716017432163,-1303.00374883,0.00013864,2]
[327359041,1716017432174,-2221.82871026,0.00013865,2]
[327359042,1716017432183,-1523.69632794,0.00013867,2]
[327359043,1716017432192,-155.7,0.00013973,2]
[327359044,1716017432205,-155.52,0.00013973,2]
[327359045,1716017432215,-3709.93647815,0.00013973,2]
[327359046,1716017432227,-5502.88395324,0.00013973,2]
[327359047,1716017432237,-364.18725345,0.00016953,2]
[327359048,1716017432246,-12391.2843,0.00016954,2]
[327359049,1716017432256,-300.0,0.00017059,2]
[327359050,1716017432266,-4274.74171182,0.00017259,2]
[327359051,1716017432276,-402.11166272,0.00017533,2]
[327359052,1716017432285,-3879.18657409,0.00019451,2]
[327359053,1716017432294,-36360.01590283,0.00019451,2]
[327359054,1716017432303,-499.99,0.00019452,2]
[327359055,1716017432313,-227.79,0.00021918,2]
[327359056,1716017432322,-6767.13708574,0.00021999,2]
[327359057,1716017432332,-1050.0,0.00022,2]
[327359058,1716017432341,-1100.0,0.00024,2]
[327359059,1716017432350,-155.52,0.00024224,2]
[327359060,1716017432361,-1150.0,0.00026,2]
[327359061,1716017432370,-7153.477,0.00026895,2]
[327359062,1716017432379,-210.5698,0.00026895,2]
[327359063,1716017432388,-256.834,0.00026895,2]
[327359064,1716017432397,-2651.2496,0.00026895,2]
[327359065,1716017432406,-1742.60595667,0.00027999,2]
[327359066,1716017432416,-1200.0,0.00028,2]
[327359067,1716017432425,-2000.0,0.0002892,2]
[327359068,1716017432434,-1481.05847419,0.00029081,2]
[327359069,1716017432444,-2163.38,0.00029082,2]
[327359070,1716017432455,-250.0,0.00029388,2]
[327359072,1716017432464,-225.59952986,0.000295,3]
[327359074,1716017432474,-150.0,0.0002959,2]
[327359076,1716017432483,-7008.45629382,0.0003,4]
[327359078,1716017432492,-1250.0,0.0003,2]
[327359080,1716017432502,-19384.48887425,0.00030163,4]
[327359081,1716017432511,-23803.93424964,0.00030163,4]
[327359084,1716017432521,-5684.64320039,0.00030164,2]
[327359085,1716017432531,-1391.1,0.00030165,2]
[327359091,1716017432631,-2542.80372765,0.0003075,4]
[327359092,1716017432643,-250.0,0.00030989,2]
[327359093,1716017432652,-1300.0,0.00032,2]
[327359095,1716017432661,-333.25588851,0.00032005,4]
[327359096,1716017432671,-200.0,0.00032273,2]
[327359098,1716017432680,-500.0,0.00032702,2]
[327359100,1716017432694,-22311.04396895,0.00032858,2]
[327359104,1716017432737,-1588.95603105,0.00032858,2]
[327359105,1716017432747,-156.11866005,0.00032889,2]
[327359106,1716017432756,-404.74777727,0.00032898,2]
[327359107,1716017432766,-404.74777727,0.00032898,2]
[327359108,1716017432775,-404.74777727,0.00032927,2]
[327359109,1716017432784,-156.11866005,0.00032928,2]
[327359110,1716017432794,-151.86,0.00032982,120]
[327359111,1716017432803,-250.0,0.00033549,115]
[327359112,1716017432812,-1350.0,0.00034,2]
[327359113,1716017432821,-404.74777727,0.00034066,2]
[327359114,1716017432830,-156.11866005,0.00034067,2]
[327359115,1716017432839,-155.52,0.00034475,2]
[327359116,1716017432848,-151.020529,0.00034868,2]
[327359117,1716017432857,-404.74777727,0.00035205,2]
[327359118,1716017432866,-156.11866005,0.00035206,2]
[327359119,1716017432875,-360.0,0.00035653,2]
[327359120,1716017432884,-180.0,0.00035972,2]
[327359121,1716017432893,-1400.0,0.00036,2]
[327359122,1716017432902,-404.74777727,0.00036344,2]
[327359123,1716017432911,-156.11866005,0.00036344,2]
[327359124,1716017432920,-151.0,0.00036758,2]
[327359125,1716017432929,-1052.60047608,0.00036765,30]
[327359126,1716017432941,-503.022718,0.00036765,30]
[327359127,1716017432981,-477.93309877,0.0002499,2]
[327359128,1716017432993,-5141.00196918,0.0002499,2]
[327359133,1716017438189,-953.23988846,0.00022,2]
[327359134,1716017438201,-96.76011154,0.00022,2]
[327359135,1716017438211,-1100.0,0.00024,2]
[327359136,1716017438220,-3529.86419436,0.0002499,2]
[327359137,1716017438230,-1150.0,0.00026,2]
[327359138,1716017438239,-159.87,0.00027111,2]
[327359139,1716017438249,-1200.0,0.00028,2]
[327359140,1716017438258,-1250.0,0.0003,2]
[327359141,1716017438267,-159.87,0.00033255,2]
[327359142,1716017438277,-11828.37680592,0.00036765,30]
[327359143,1716017438287,-750.59667665,0.00036898,4]
[327359144,1716017438296,-646.18446593,0.00036898,4]
[327359145,1716017438307,-302.0,0.00037375,4]
[327359146,1716017438316,-404.74777727,0.00037483,2]
[327359147,1716017438326,-156.11866005,0.00037483,2]
[327359148,1716017438335,-500.0,0.00037566,10]
[327359149,1716017438345,-1441.84001218,0.000377,4]
[327359150,1716017438355,-1450.0,0.00038,2]
[327359151,1716017438364,-500.0,0.00038114,10]
[327359152,1716017438373,-154.35,0.00038356,2]
[327359153,1716017438382,-404.74777727,0.00038622,2]
[327359154,1716017438392,-156.11866005,0.00038622,2]
[327359155,1716017438401,-500.0,0.00038662,10]
[327359156,1716017438410,-2362.50893679,0.0003868,2]
[327359157,1716017438420,-500.0,0.00038936,10]
[327359158,1716017438429,-1500.0,0.00038936,10]
[327359159,1716017438439,-1805.18884233,0.00038948,2]
[327359160,1716017438448,-591.87489295,0.0003895,120]
[327359161,1716017438457,-500.0,0.0003921,10]
[327359162,1716017438466,-159.87,0.000394,2]
[327359163,1716017438476,-1500.0,0.00039484,10]
[327359164,1716017438485,-1000.0,0.000395,2]
[327359165,1716017438494,-500.0,0.00039758,10]
[327359166,1716017438504,-404.74777727,0.00039761,2]
[327359167,1716017438513,-156.11866005,0.00039761,2]
[327359168,1716017438523,-672.0382413,0.00039899,10]
[327359169,1716017438532,-7500.0,0.000399,2]
[327359170,1716017438542,-6840.29146548,0.0003998,2]
[327359171,1716017438552,-50000.0,0.0004,20]
[327359172,1716017438561,-50000.0,0.0004,30]
[327359173,1716017438571,-22195.17934438,0.0004,4]
[327359174,1716017438580,-193.52112342,0.0004,2]
[327359175,1716017438685,-1500.0,0.0004,2]
[327359176,1716017438698,-559.17417571,0.0004,4]
[327359177,1716017438708,-1807.70243348,0.0004002,4]
[327359178,1716017438718,-1500.0,0.00040032,10]
[327359179,1716017438728,-500.0,0.00040032,10]
[327359180,1716017438738,-360.0,0.0004011,2]
[327359181,1716017438747,-700.0,0.00040306,10]
[327359182,1716017438756,-1500.0,0.0004058,10]
[327359183,1716017438767,-179.02812795,0.0004059,120]
[327359184,1716017438777,-1625.15008015,0.00040772,2]
[327359185,1716017438787,-319.67152339,0.00040795,30]
[327359186,1716017438796,-500.0,0.00040854,10]
[327359187,1716017438806,-700.0,0.00040854,10]
[327359188,1716017438815,-195.01809925,0.00040888,2]
[327359189,1716017438825,-179.9767339,0.00040897,2]
[327359190,1716017438834,-463782.60983461,0.00040898,23]
[327359191,1716017438846,-67304.32407413,0.00040898,23]
[327359192,1716017438861,-488.1294,0.00040898,23]
[327359206,1716017440374,-479.63999999,0.00032,2]
[327359207,1716017440387,-613.89324369,0.00032,2]
[327359208,1716017440399,-206.46675632,0.00032,2]
[327359209,1716017440410,-570.59824369,0.00034,2]
[327359210,1716017440422,-606.52764663,0.00034,2]
[327359211,1716017440536,-172.87410968,0.00034,2]
[327359212,1716017440546,-807.88,0.0003999,10]
[327359213,1716017440556,-305.9617255,0.00040798,2]
[327359214,1716017440565,-15242.37903876,0.00040898,23]
[327359215,1716017440576,-5094.5367891,0.00040898,23]
[327359216,1716017440907,-286786.60997049,0.00040898,23]
[327359218,1716017440916,-33220.6762763,0.00040898,2]
[327359220,1716017440928,-174510.19432764,0.00040898,2]
[327359230,1716017444057,-758.19771398,0.00036,2]
[327359231,1716017444150,-641.80228602,0.00036,2]
[327359232,1716017444160,-438.02838395,0.00038,2]
[327359233,1716017444517,-1011.97161605,0.00038,2]
[327359234,1716017444528,-1500.0,0.0004,2]
[327359235,1716017444538,-22153.70157057,0.00040897,4]
[327359236,1716017444547,-33851.68359606,0.00040898,2]
[327359237,1716017444557,-8203.4437,0.00040898,10]
[327359238,1716017444566,-163.43562874,0.00040899,2]
[327359239,1716017444576,-177.79155009,0.00040899,15]
[327359240,1716017444585,-176.10875721,0.00040899,15]
[327359241,1716017444595,-606.94167,0.000409,30]
[327359242,1716017444604,-179.9767339,0.000409,2]
[327359243,1716017444614,-156.11866005,0.000409,2]
[327359244,1716017444623,-404.74777727,0.000409,2]
[327359245,1716017444633,-4000.1766715,0.000409,2]
[327359246,1716017444642,-177.06137235,0.000409,2]
[327359247,1716017444651,-177.06137235,0.000409,2]
[327359248,1716017444660,-177.06137235,0.000409,2]
[327359249,1716017444670,-194.65528407,0.000409,2]
[327359250,1716017444679,-227.76340376,0.000409,2]
[327359251,1716017444692,-177.06137235,0.000409,2]
[327359252,1716017444701,-177.06137235,0.000409,2]
[327359253,1716017444711,-3328.45230006,0.000409,2]
[327359254,1716017444720,-195.01809925,0.00040986,2]
[327359255,1716017444731,-12025.0,0.00040986,4]
[327359256,1716017444741,-151.83,0.0004099,2]
[327359257,1716017444750,-483.13349757,0.00040992,15]
[327359258,1716017444760,-338.46731537,0.00040995,30]
[327359259,1716017444772,-500.0,0.00040995,30]
[327359260,1716017444781,-500.0,0.00040995,30]
[327359261,1716017444790,-500.0,0.00040995,30]
[327359262,1716017444799,-500.0,0.00040995,30]
[327359263,1716017444809,-500.0,0.00040995,30]
[327359264,1716017444819,-500.0,0.00040995,30]
[327359265,1716017444829,-13174.48387019,0.00040996,30]
[327359266,1716017444839,-223955.9663231,0.00040996,45]
[327359267,1716017444852,-7764.26160896,0.00040996,45]
[327359268,1716017444863,-61982.49594399,0.00040996,45]
[327359269,1716017444875,-19477.65701926,0.00040996,45]
[327359289,1716017446136,-305.9617255,0.00040815,2]
[327359290,1716017446146,-308.48808628,0.00040897,4]
[327359292,1716017446156,-2416.5493415,0.00040897,4]
[327359294,1716017446167,-1346.7,0.00040897,4]
[327359295,1716017446179,-324.95834368,0.00040897,4]
[327359296,1716017446315,-2006.03624649,0.00040897,4]
[327359297,1716017446325,-1358.62852348,0.00040996,45]
[327359298,1716017446337,-2365.86650104,0.00040996,45]
[327359299,1716017446349,-726.033,0.00040996,45]
[327359300,1716017446361,-1027.0919997,0.00040996,45]
[327359301,1716017446372,-1690.40842108,0.00040996,45]
[327359302,1716017446489,-5956.52448997,0.00040897,2]
[327359303,1716017446498,-2133.07562019,0.00040996,45]
[327359304,1716017446510,-6028.6047016,0.00040996,45]
[327359305,1716017446667,-549.5572481,0.00040996,45]
[327361646,1716017673553,7149.36484316,6.94e-05,2]
[327361648,1716018058694,-540.78655424,0.00013972,2]
[327361649,1716018058717,-162.36,0.00013973,2]
[327361650,1716018058738,-150.0,0.00016928,3]
[327361651,1716018058758,-300.0,0.00017157,2]
[327361652,1716018058778,-863.85702784,0.00017258,2]
[327361653,1716018058798,-6198.5483,0.000189,2]
[327361654,1716018058818,-1866.90474138,0.00019,5]
[327361655,1716018058838,-832.01,0.00019452,2]
[327361656,1716018058862,-150.99,0.00019452,2]
[327361657,1716018058885,-499.99,0.00019452,2]
[327361658,1716018058905,-1021.29824769,0.0002,2]
[327361659,1716018067544,364.18725345,0.00019725,2]
[327361660,1716018072700,298.83142374,0.0002,2]
[327361661,1716018080768,500.0,0.0002,2]
[327361662,1716018092687,298.83142374,0.0002,2]
[327361663,1716018098779,500.0,0.0002,2]
[327361664,1716018104598,1038.65205609,0.0002,2]
[327361665,1716018104768,1043.0920579,0.0002,2]
[327361666,1716018108730,299.2056032,0.0002,2]
[327361667,1716018118604,1038.65205609,0.0002,2]
[327361668,1716018118772,500.0,0.0002,2]
[327361669,1716018120765,1043.0920579,0.0002,2]
[327361670,1716018136601,1186.2092065,0.0002,2]
[327361671,1716018138770,1051.28197987,0.0002,2]
[327361672,1716018138796,500.0,0.0002,2]
[327361673,1716018139401,24240.01060189,0.00019725,2]
[327361674,1716018158785,396.95893781,0.0002,2]
[327361675,1716018204448,152.86,0.00013973,2]
[327361676,1716018313711,3000.0,0.00017259,2]
[327361678,1716018428950,4156.27918998,0.0002,2]
[327361735,1716018632067,-300.0,0.00021899,2]
[327361736,1716018632082,-1000.0,0.00021978,2]
[327361737,1716018632095,-629.6790548,0.00021985,2]
[327361738,1716018632112,-370.3209452,0.00021985,2]
[327361739,1716018632126,-362.59334566,0.00021998,2]
[327361740,1716018632217,-637.40665434,0.00021998,2]
[327361741,1716018632232,-1050.0,0.00022,2]
[327361742,1716018632246,-1050.0,0.00022,2]
[327361743,1716018632261,-499.99,0.00022,2]
[327361744,1716018632270,-12000.0,0.00022,2]
[327361745,1716018632279,-1100.0,0.00024,2]
[327361746,1716018632391,-443.10334565,0.00024,2]
[327361747,1716018632456,-656.89665435,0.00024,2]
[327361748,1716018632465,-159.34788063,0.00024,7]
[327361749,1716018632477,-140.64211937,0.00024,7]
[327361750,1716018632486,-432.75692337,0.00024,2]
[327361751,1716018632495,-364.18725345,0.00024989,2]
[327361752,1716018632505,-9148.79926231,0.0002499,2]
[327361753,1716018632516,-155.0,0.00025,2]
[327361754,1716018632525,-224.1230564,0.00025,2]
[327361755,1716018632534,-926.12875824,0.00025993,2]
[327361756,1716018632543,-1150.0,0.00026,2]
[327361757,1716018632552,-1150.0,0.00026,2]
[327361758,1716018632561,-162.05,0.00026356,2]
[327361759,1716018632570,-1742.60595667,0.00027,2]
[327361760,1716018632579,-20200.00883491,0.00027011,2]
[327361761,1716018632588,-500.0,0.00027013,2]
[327361762,1716018632597,-428.29,0.00027016,2]
[327361763,1716018632607,-151.86,0.00027041,2]
[327361765,1716018632616,-250.0,0.00027137,2]
[327361767,1716018632627,-6379.0,0.000272,2]
[327361769,1716018632636,-316.25,0.00027446,2]
[327361771,1716018632645,-156.23,0.00027451,2]
[327361773,1716018632655,-200.0,0.00027638,2]
[327361775,1716018632664,-1565.33,0.00027851,2]
[327361777,1716018632674,-200.0,0.00027916,2]
[327361779,1716018632683,-644.96,0.00027923,2]
[327361781,1716018632693,-1200.0,0.00028,2]
[327361783,1716018632704,-1200.0,0.00028,2]
[327361785,1716018632713,-152.46,0.00028015,15]
[327361787,1716018632723,-2751.0,0.00028025,2]
[327361788,1716018632732,-500.0,0.00028061,2]
[327361789,1716018632742,-4031.1,0.00028101,2]
[327361790,1716018632751,-2000.0,0.00028168,2]
[327361791,1716018632760,-250.0,0.00028171,2]
[327361792,1716018632770,-23900.0,0.00028179,2]
[327361793,1716018632779,-1913.04,0.00028229,2]
[327361794,1716018632788,-250.0,0.0002824,2]
[327361795,1716018632798,-156.66,0.0002828,2]
[327361796,1716018632808,-169.87,0.00028436,2]
[327361797,1716018632817,-1481.05847419,0.00029,2]
[327361798,1716018632826,-152.86,0.00029349,2]
[327361799,1716018632835,-225.59952986,0.000295,3]
[327361800,1716018632845,-25078.85457529,0.00029741,30]
[327361801,1716018632855,-4094.9777,0.000299,2]
[327361802,1716018632865,-643.45469285,0.000299,2]
[327361803,1716018632875,-169.87,0.00029917,2]
[327361804,1716018632884,-1250.0,0.0003,2]
[327361805,1716018632895,-1250.0,0.0003,2]
[327361806,1716018632904,-2141.00064411,0.0003,4]
[327361807,1716018632916,-440.52331929,0.0003,4]
[327361808,1716018632955,-5671.78176386,0.0003,4]
[327361816,1716018638167,-3172.10104758,0.00024989,2]
[327361817,1716018638275,-3427.51713347,0.00024989,2]
[327361818,1716018638287,-381.33465368,0.00024989,2]
[327361819,1716018638332,-13219.05600018,0.00024989,2]
[327361820,1716018638341,-15550.62852238,0.0003,4]
[327361821,1716018638351,-5684.64320039,0.0003,2]
[327361822,1716018638361,-180.0,0.00030251,2]
[327361823,1716018638370,-19384.48887425,0.00030589,4]
[327361824,1716018638381,-1565.33,0.00030591,2]
[327361825,1716018638390,-644.96,0.00031413,2]
[327361826,1716018638400,-1300.0,0.00032,2]
[327361827,1716018638410,-1300.0,0.00032,2]
[327361828,1716018638420,-333.25588851,0.00032,4]
[327361829,1716018638430,-175.7,0.00032386,120]
[327361830,1716018638441,-643.45469283,0.0003245,2]
[327361831,1716018638451,-162.05,0.000325,2]
[327361832,1716018638460,-156.11866013,0.00032889,2]
[327361833,1716018638469,-2500.0,0.00032986,2]
[327361834,1716018638479,-151.21,0.00033076,2]
[327361835,1716018638489,-113285.6199,0.00033086,2]
[327361836,1716018638499,-1565.33,0.0003333,2]
[327361837,1716018638508,-1350.0,0.00034,2]
[327361838,1716018638519,-1350.0,0.00034,2]
[327361839,1716018638528,-156.23,0.00034417,2]
[327361840,1716018638538,-150.0,0.00034548,10]
[327361841,1716018638547,-644.96,0.00034904,2]
[327361842,1716018638556,-643.45469283,0.00035,2]
[327361843,1716018638565,-1400.0,0.00036,2]
[327361844,1716018638575,-1400.0,0.00036,2]
[327361845,1716018638584,-643.45469283,0.0003755,2]
[327361846,1716018638594,-1441.84001218,0.000377,4]
[327361847,1716018638603,-1450.0,0.00038,2]
[327361848,1716018638612,-1450.0,0.00038,2]
[327361849,1716018638622,-644.96,0.00038394,2]
[327361850,1716018638632,-162.05,0.00038645,2]
[327361851,1716018638641,-1100.0,0.00038936,10]
[327361852,1716018638651,-500.0,0.00038936,10]
[327361853,1716018638660,-1100.0,0.00039484,10]
[327361854,1716018638670,-672.0382413,0.00039899,10]
[327361855,1716018638681,-7500.0,0.000399,2]
[327361856,1716018638691,-50000.0,0.0004,19]
[327361857,1716018638700,-50000.0,0.0004,29]
[327361858,1716018638709,-1500.0,0.0004,2]
[327361859,1716018638719,-1500.0,0.0004,2]
[327361860,1716018638728,-166.83024087,0.0004,15]
[327361861,1716018638832,-1022.27944572,0.0004,120]
[327361862,1716018638842,-22195.17934438,0.0004,4]
[327361863,1716018638851,-500.0,0.0004,120]
[327361864,1716018638861,-500.0,0.0004,120]
[327361865,1716018638871,-559.17417571,0.0004,4]
[327361867,1716018638880,-1807.70243348,0.0004,4]
[327361868,1716018638890,-193.52112342,0.0004,2]
[327361869,1716018638899,-500.0,0.0004,120]
[327361870,1716018638908,-1100.0,0.00040032,10]
[327361871,1716018638918,-500.0,0.00040032,10]
[327361872,1716018638928,-151.21,0.00040189,2]
[327361873,1716018638937,-195.01809926,0.0004019,2]
[327361874,1716018638947,-372.36929629,0.00040198,4]
[327361875,1716018638957,-1149.785,0.00040199,2]
[327361876,1716018638966,-134769.01688651,0.000402,30]
[327361877,1716018638975,-50226.4143748,0.000402,35]
[327361878,1716018638984,-500.0,0.000402,120]
[327361879,1716018638994,-257.79,0.000402,120]
[327361880,1716018639003,-420.56,0.00040301,2]
[327361881,1716018639014,-301.84,0.00040301,2]
[327361882,1716018639023,-160.82,0.00040301,2]
[327361883,1716018639032,-150.0,0.00040301,2]
[327361884,1716018639041,-420.56,0.00040301,2]
[327361885,1716018639051,-150.0,0.00040301,2]
[327361886,1716018639060,-420.56,0.00040301,2]
[327361887,1716018639069,-150.0,0.00040301,2]
[327361888,1716018639079,-503.73,0.00040301,2]
[327361889,1716018639088,-326.62,0.00040301,2]
[327361890,1716018639098,-151.23,0.00040301,2]
[327361891,1716018639107,-420.56,0.00040301,2]
[327361892,1716018639116,-420.56,0.00040301,2]
[327361893,1716018639126,-600.0,0.00040306,10]
[327361894,1716018639135,-769.29,0.00040356,2]
[327361895,1716018639144,-500.0,0.000404,120]
[327361896,1716018639154,-500.0,0.000404,120]
[327361898,1716018639164,-1100.0,0.0004058,10]
[327361900,1716018639174,-238.93775425,0.00040589,3]
[327361902,1716018639184,-500.0,0.000406,120]
[327361904,1716018639194,-500.0,0.000406,120]
[327361906,1716018639204,-151.0,0.00040659,2]
[327361907,1716018639213,-1000.0,0.00040671,20]
[327361908,1716018639223,-500.0,0.00040671,20]
[327361909,1716018639232,-423.459,0.00040788,2]
[327361910,1716018639241,-163.43562873,0.0004079,2]
[327361911,1716018639251,-176.1087572,0.0004079,14]
[327361912,1716018639261,-502.0,0.0004079,2]
[327361913,1716018639275,-1065.39443865,0.0004079,16]
[327361914,1716018639284,-199.96781809,0.00040796,2]
[327361915,1716018639293,-500.0,0.000408,120]
[327361916,1716018639303,-500.0,0.000408,120]
[327361917,1716018639314,-600.0,0.00040854,10]
[327361918,1716018639323,-151.21,0.0004087,2]
[327361919,1716018639332,-151.21,0.0004088,2]
[327361920,1716018639342,-151.21,0.0004088,2]
[327361921,1716018639353,-151.21,0.0004088,2]
[327361922,1716018639362,-151.21,0.0004088,2]
[327361923,1716018639372,-151.21,0.0004088,2]
[327361924,1716018639381,-28023.09902105,0.0004088,2]
[327361925,1716018639390,-151.21,0.0004088,2]
[327361926,1716018639399,-489270.52814524,0.00040886,25]
[327361927,1716018639661,-796.44791203,0.00040886,25]
[327361928,1716018639676,-3181.19978816,0.00040886,25]
[327361929,1716018640286,-1528.429542,0.00040886,25]
[327361930,1716018640298,-9004.34196639,0.00040886,25]
[327361931,1716018640617,-1396.74061934,0.00040886,25]
[327361932,1716018640628,-635.74,0.00040886,25]
[327361933,1716018640651,-294.5,0.00040886,25]
[327361934,1716018640662,-2875.82477649,0.00040886,25]
[327361935,1716018640678,-276.07675389,0.00040886,25]
[327361936,1716018640697,-373.9118093,0.000401,2]
[327361937,1716018640708,-269.54288353,0.000401,2]
[327361938,1716018640717,-542.70878457,0.00040886,25]
[327361963,1716018643200,-600.42852294,0.00040886,25]
[327361964,1716018643245,-1340.92772109,0.00040886,25]
[327361965,1716018643300,-27253.78116483,0.00040886,25]
[327361966,1716018643421,-502.17166771,0.00040886,25]
[327361967,1716018643517,-840.27011938,0.00040886,25]
[327361978,1716018646105,-420.56,0.00040301,2]
[327361979,1716018646115,-7522.95553978,0.00040886,25]
[327361980,1716018646127,-5526.20000004,0.00040886,25]
[327361981,1716018648127,-426.05001103,0.000403,4]
[327361982,1716018648138,-820.53899301,0.000403,2]
[327361983,1716018648186,-443.65309327,0.000403,2]
[327361984,1716018648200,-1243.31363286,0.00040886,25]
[327361985,1716018648213,-259.87294678,0.00040886,25]
[327361986,1716018648300,-6220.00000003,0.00040886,25]
[327361987,1716018648350,-1005.98,0.00040886,25]
[327362014,1716018681397,158.32,0.00013973,2]
[327362015,1716018861042,887.55075335,0.00017807,2]
[327362016,1716018917713,155.0,0.00017259,2]
[327362017,1716018943076,155.0,0.00017259,2]
[327362018,1716019007689,1205.40289274,0.00017259,2]
[327362019,1716019014603,1205.40289274,0.00017259,2]
[327362020,1716019154447,156.0,0.00013973,2]
[327362021,1716019305325,364.18725345,0.00019725,2]
[327362022,1716019388634,10524.20460299,0.00019725,2]
[327362023,1716019530998,1244.98776031,0.00017259,2]
[327362024,1716019550866,535.6337843,0.00017259,2]